[Event "Open Mancomunitat de la Ribera Alta (Sumacàrcer)"]
[Site "Sumacàrcer, Spain"]
[Date "2018.11.18"]
[Round "2.1"]
[White "Pena Riasco, Alexander"]
[Black "Plaskett, H James"]
[Result "0-1"]
[TimeControl "5m+3s"]
[WhiteElo "2039"]
[BlackElo "2490"]

1. d4 {[%clk 00:05:05]} e6 {[%clk 00:05:05]} 2. Bf4 {[%clk 00:05:06]} Nf6
{[%clk 00:05:06]} 3. e3 {[%clk 00:05:08]} {[%emt 00:00:27]} c5 {[%clk
00:05:07]} 4. c3 {[%clk 00:04:59]} Nc6 {[%clk 00:05:08]} 5. Nd2 {[%clk
00:04:50]} {[%emt 00:00:04]} b6 {[%clk 00:05:00]} {[%emt 00:00:10]} 6. Ngf3
{[%clk 00:04:39]} {[%emt 00:00:13]} Bb7 {[%clk 00:05:02]} {[%emt 00:00:10]} 7.
Bd3 {[%clk 00:04:32]} {[%emt 00:00:04]} Be7 {[%clk 00:05:00]} {[%emt 00:00:04]}
8. h3 {[%clk 00:04:35]} O-O {[%clk 00:04:56]} {[%emt 00:00:07]} 9. O-O {[%clk
00:04:36]} {[%emt 00:00:04]} Rc8 {[%clk 00:04:53]} {[%emt 00:00:07]} 10. a4
{[%clk 00:04:36]} {[%emt 00:00:03]} Re8 {[%clk 00:04:32]} {[%emt 00:00:21]} 11.
Qe2 {[%clk 00:04:26]} {[%emt 00:00:11]} Bf8 {[%clk 00:04:31]} {[%emt 00:00:24]}
12. Rfe1 {[%clk 00:04:07]} {[%emt 00:00:06]} h6 {[%clk 00:04:16]} {[%emt
00:00:14]} 13. Rad1 {[%clk 00:03:21]} {[%emt 00:00:51]} d6 {[%clk 00:03:34]}
{[%emt 00:00:42]} 14. Bb1 {[%clk 00:03:10]} {[%emt 00:00:17]} Qe7 {[%clk
00:03:15]} {[%emt 00:00:20]} 15. Bg3 {[%clk 00:02:51]} {[%emt 00:00:26]} Red8
{[%clk 00:02:59]} {[%emt 00:00:38]} 16. e4 {[%clk 00:02:31]} {[%emt 00:00:06]}
cxd4 {[%clk 00:02:53]} {[%emt 00:00:05]} 17. cxd4 {[%clk 00:02:34]} e5 {[%clk
00:01:36]} {[%emt 00:01:19]} 18. d5 {[%clk 00:02:09]} {[%emt 00:00:26]} Nb4
{[%clk 00:01:34]} {[%emt 00:00:28]} 19. Nh4 {[%clk 00:02:09]} Ba6 {[%clk
00:01:28]} {[%emt 00:00:17]} 20. Qf3 {[%clk 00:02:08]} g6 {[%clk 00:01:25]} 21.
Qb3 {[%clk 00:01:40]} {[%emt 00:00:12]} Nbxd5 {[%clk 00:01:19]} {[%emt
00:00:11]} 22. exd5 {[%clk 00:01:34]} {[%emt 00:00:06]} Nh5 {[%clk 00:01:21]}
{[%emt 00:00:14]} 23. Bd3 {[%clk 00:01:14]} {[%emt 00:00:13]} Bb7 {[%clk
00:01:22]} {[%emt 00:00:04]} 24. Nhf3 {[%clk 00:00:48]} {[%emt 00:00:27]} Nxg3
{[%clk 00:01:12]} {[%emt 00:00:17]} 25. fxg3 {[%clk 00:00:50]} Rc5 {[%clk
00:01:11]} {[%emt 00:00:04]} 26. Ne4 {[%clk 00:00:08]} {[%emt 00:00:40]} Rxd5
{[%clk 00:01:10]} {[%emt 00:05:29]} 27. Bc4 {[%clk 00:00:10]} Rxd1 {[%clk
00:01:11]} 28. Rxd1 {[%clk 00:00:12]} Bxe4 {[%clk 00:01:12]} 29. Nh4 {[%clk
00:00:13]} d5 {[%clk 00:01:12]} 30. Bb5 Kh7 {[%clk 00:01:09]} 31. Nf3 {[%clk
00:00:16]} Bg7 {[%clk 00:01:09]} 32. Qe3 {[%clk 00:00:17]} f5 {[%clk 00:01:07]}
33. Nh4 {[%clk 00:00:12]} Qc5 {[%clk 00:01:05]} 34. Qxc5 {[%clk 00:00:10]} bxc5
{[%clk 00:01:07]} 35. Rc1 {[%clk 00:00:10]} c4 {[%clk 00:01:07]} 36. b3 {[%clk
00:00:10]} g5 {[%clk 00:01:05]} 37. Nf3 {[%clk 00:00:12]} cxb3 {[%clk
00:01:07]} 38. Nd2 {[%clk 00:00:09]} Bc2 {[%clk 00:01:07]} 39. a5 {[%clk
00:00:10]} e4 {[%clk 00:01:08]} 40. Ba4 {[%clk 00:00:08]} Rb8 {[%clk 00:01:05]}
41. Bxb3 {[%clk 00:00:05]} Bxb3 {[%clk 00:01:06]} 42. Nxb3 {[%clk 00:00:06]}
Rxb3 {[%clk 00:01:08]} 43. Rc7 {[%clk 00:00:08]} Kg6 {[%clk 00:01:07]} 44. Kf1
{[%clk 00:00:10]} Bd4 {[%clk 00:01:08]} 45. Ke2 {[%clk 00:00:12]} Ra3 {[%clk
00:01:09]} 46. Rd7 {[%clk 00:00:13]} Rxa5 {[%clk 00:01:11]} 47. Rd6+ {[%clk
00:00:16]} Bf6 {[%clk 00:01:12]} 48. h4 {[%clk 00:00:18]} gxh4 {[%clk
00:01:13]} 49. gxh4 {[%clk 00:00:20]} f4 {[%clk 00:01:15]} 50. h5+ {[%clk
00:00:21]} Kf5 {[%clk 00:01:18]} 0-1

[Event "Open Mancomunitat de la Ribera Alta (Sumacàrcer)"]
[Site "Sumacàrcer, Spain"]
[Date "2018.11.18"]
[Round "2.2"]
[White "Kovacevic, Slobodan"]
[Black "Barbero Verdu, Francisco"]
[Result "1-0"]
[TimeControl "5m+3s"]
[WhiteElo "2455"]
[BlackElo "2043"]

1. d4 {[%clk 00:05:05]} Nf6 {[%clk 00:05:05]} {[%emt 00:00:03]} 2. Nf3 {[%clk
00:05:07]} b6 {[%clk 00:05:08]} 3. Bf4 {[%clk 00:05:08]} Bb7 {[%clk 00:05:10]}
4. Nbd2 {[%clk 00:05:11]} {[%emt 00:00:04]} g6 {[%clk 00:05:12]} 5. e3 {[%clk
00:05:11]} {[%emt 00:00:04]} Bg7 {[%clk 00:05:14]} 6. Bd3 {[%clk 00:05:11]}
{[%emt 00:00:04]} d6 {[%clk 00:05:16]} 7. h3 {[%clk 00:05:12]} {[%emt
00:00:06]} Nbd7 {[%clk 00:05:18]} 8. Qe2 {[%clk 00:05:08]} {[%emt 00:00:04]} c5
{[%clk 00:05:20]} 9. c3 {[%clk 00:05:09]} {[%emt 00:00:04]} Qc7 {[%clk
00:05:19]} {[%emt 00:00:04]} 10. O-O {[%clk 00:05:09]} O-O {[%clk 00:05:20]}
{[%emt 00:00:04]} 11. Bh2 {[%clk 00:05:10]} a6 {[%clk 00:05:20]} {[%emt
00:00:13]} 12. a4 {[%clk 00:05:12]} Rfe8 {[%clk 00:05:16]} 13. Rfd1 {[%clk
00:05:13]} Qc8 {[%clk 00:05:09]} {[%emt 00:00:09]} 14. e4 {[%clk 00:05:06]}
{[%emt 00:00:11]} e5 {[%clk 00:05:00]} {[%emt 00:00:09]} 15. dxe5 {[%clk
00:04:46]} {[%emt 00:00:31]} Nxe5 {[%clk 00:05:00]} 16. Nxe5 {[%clk 00:04:44]}
dxe5 {[%clk 00:05:02]} 17. Nc4 {[%clk 00:04:22]} {[%emt 00:00:29]} Qc7 {[%clk
00:04:56]} {[%emt 00:00:08]} 18. f3 {[%clk 00:04:18]} {[%emt 00:00:07]} b5
{[%clk 00:04:50]} {[%emt 00:00:13]} 19. axb5 {[%clk 00:04:13]} {[%emt
00:00:07]} axb5 {[%clk 00:04:52]} 20. Rxa8 {[%clk 00:04:15]} Bxa8 {[%clk
00:04:47]} {[%emt 00:00:08]} 21. Na3 {[%clk 00:04:14]} {[%emt 00:00:03]} c4
{[%clk 00:04:48]} 22. Bb1 {[%clk 00:04:14]} {[%emt 00:00:03]} Bc6 {[%clk
00:04:39]} {[%emt 00:00:11]} 23. Nc2 {[%clk 00:04:16]} {[%emt 00:00:17]} Nd7
{[%clk 00:04:31]} {[%emt 00:00:08]} 24. Ne3 {[%clk 00:04:14]} Nc5 {[%clk
00:04:20]} {[%emt 00:00:06]} 25. Nd5 {[%clk 00:04:16]} {[%emt 00:00:11]} Qb7
{[%clk 00:04:13]} {[%emt 00:00:03]} 26. Bc2 {[%clk 00:04:17]} {[%emt 00:00:04]}
Rd8 {[%clk 00:03:54]} {[%emt 00:00:17]} 27. Nb4 {[%clk 00:04:15]} {[%emt
00:00:21]} Rd7 {[%clk 00:03:07]} {[%emt 00:00:33]} 28. Bg3 {[%clk 00:04:12]}
{[%emt 00:00:10]} Ne6 {[%clk 00:02:52]} {[%emt 00:00:30]} 29. Kh2 {[%clk
00:04:03]} Nf4 {[%clk 00:02:53]} {[%emt 00:00:04]} 30. Qe3 {[%clk 00:03:54]}
{[%emt 00:00:07]} Rxd1 {[%clk 00:02:18]} {[%emt 00:00:38]} 31. Bxd1 {[%clk
00:03:56]} {[%emt 00:00:35]} Qd7 {[%clk 00:02:21]} 32. Bc2 {[%clk 00:03:43]}
{[%emt 00:00:08]} Bh6 {[%clk 00:02:12]} 33. Qe1 {[%clk 00:03:11]} {[%emt
00:00:22]} Bb7 {[%clk 00:02:09]} {[%emt 00:00:36]} 34. b3 {[%clk 00:03:01]}
{[%emt 00:00:03]} Nd3 {[%clk 00:02:10]} 35. Qd1 {[%clk 00:02:53]} Nc5 {[%clk
00:01:43]} {[%emt 00:00:25]} 36. bxc4 {[%clk 00:02:44]} {[%emt 00:00:10]} bxc4
{[%clk 00:01:37]} {[%emt 00:00:33]} 37. Bxe5 {[%clk 00:02:44]} {[%emt
00:00:03]} Qxd1 {[%clk 00:01:25]} 38. Bxd1 {[%clk 00:02:46]} Bd2 {[%clk
00:01:27]} 39. Be2 {[%clk 00:02:42]} {[%emt 00:00:03]} Na4 {[%clk 00:01:25]}
{[%emt 00:00:04]} 40. Na2 {[%clk 00:02:38]} {[%emt 00:00:08]} Ba6 {[%clk
00:01:22]} {[%emt 00:00:06]} 41. Kg3 {[%clk 00:02:31]} {[%emt 00:00:13]} Kf8
{[%clk 00:01:23]} 42. Bd6+ {[%clk 00:02:25]} {[%emt 00:00:05]} Ke8 {[%clk
00:01:26]} {[%emt 00:00:10]} 43. Bb4 {[%clk 00:02:27]} Kd7 {[%clk 00:01:20]}
{[%emt 00:00:03]} 44. Kf2 {[%clk 00:02:28]} {[%emt 00:00:03]} Ke6 {[%clk
00:01:19]} {[%emt 00:00:04]} 45. Bd1 {[%clk 00:02:22]} {[%emt 00:00:05]} Nb2
{[%clk 00:01:16]} {[%emt 00:00:11]} 46. Bc2 {[%clk 00:02:07]} {[%emt 00:00:13]}
Nd3+ {[%clk 00:01:17]} {[%emt 00:00:31]} 47. Ke2 {[%clk 00:02:10]} Nxb4 {[%clk
00:01:19]} 48. Nxb4 {[%clk 00:02:08]} {[%emt 00:00:08]} Bxc3 {[%clk 00:01:20]}
49. Nxa6 {[%clk 00:02:10]} f5 {[%clk 00:01:12]} 50. exf5+ {[%clk 00:02:04]}
gxf5 {[%clk 00:01:14]} 51. Nc7+ {[%clk 00:02:01]} {[%emt 00:00:05]} Ke5 {[%clk
00:01:14]} 52. Nb5 {[%clk 00:02:00]} {[%emt 00:00:08]} Bb4 {[%clk 00:01:14]} 53.
g3 {[%clk 00:02:00]} {[%emt 00:00:06]} h5 {[%clk 00:01:13]} {[%emt 00:00:03]}
54. f4+ {[%clk 00:02:01]} Kf6 {[%clk 00:01:11]} {[%emt 00:00:04]} 55. Nd4
{[%clk 00:02:00]} {[%emt 00:00:09]} Bc5 {[%clk 00:01:06]} {[%emt 00:00:04]} 56.
Nxf5 {[%clk 00:02:01]} {[%emt 00:00:15]} Bb6 {[%clk 00:00:39]} {[%emt
00:00:17]} 57. Kf3 {[%clk 00:01:58]} {[%emt 00:00:03]} Bc5 {[%clk 00:00:37]}
{[%emt 00:00:12]} 58. Bb1 {[%clk 00:01:55]} c3 {[%clk 00:00:34]} {[%emt
00:00:11]} 59. Bc2 {[%clk 00:01:54]} {[%emt 00:00:04]} Bb6 {[%clk 00:00:30]}
{[%emt 00:00:11]} 60. Nd6 {[%clk 00:01:53]} Ba5 {[%clk 00:00:13]} {[%emt
00:00:21]} 61. Ke2 {[%clk 00:01:46]} {[%emt 00:00:03]} Bb6 {[%clk 00:00:12]}
{[%emt 00:00:06]} 62. Ne4+ {[%clk 00:01:46]} {[%emt 00:00:07]} Ke7 {[%clk
00:00:08]} {[%emt 00:00:03]} 63. Nxc3 {[%clk 00:01:47]} {[%emt 00:00:04]} Bd4
{[%clk 00:00:08]} 64. Ne4 {[%clk 00:01:47]} {[%emt 00:00:04]} Kf7 {[%clk
00:00:06]} {[%emt 00:00:03]} 65. Kf3 {[%clk 00:01:46]} {[%emt 00:00:04]} Kg7
{[%clk 00:00:06]} {[%emt 00:00:04]} 66. Nd6 {[%clk 00:01:47]} {[%emt 00:00:06]}
Kh8 {[%clk 00:00:05]} {[%emt 00:00:04]} 67. Bg6 {[%clk 00:01:46]} {[%emt
00:00:04]} h4 {[%clk 00:00:06]} 68. g4 {[%clk 00:01:41]} {[%emt 00:00:07]} Bb2
{[%clk 00:00:07]} {[%emt 00:00:03]} 69. Nf5 {[%clk 00:01:40]} {[%emt 00:00:06]}
Kg8 {[%clk 00:00:07]} {[%emt 00:00:04]} 70. Nxh4 {[%clk 00:01:40]} Kg7 {[%clk
00:00:09]} 71. Bd3 {[%clk 00:01:41]} Bf6 {[%clk 00:00:08]} {[%emt 00:00:08]} 72.
Nf5+ {[%clk 00:01:42]} Kf7 {[%clk 00:00:10]} {[%emt 00:00:04]} 73. g5 {[%clk
00:01:44]} Bb2 {[%clk 00:00:12]} 74. h4 {[%clk 00:01:45]} Kg8 {[%clk 00:00:12]}
{[%emt 00:00:03]} 75. Kg4 {[%clk 00:01:47]} Bc1 {[%clk 00:00:14]} {[%emt
00:00:11]} 76. h5 {[%clk 00:01:46]} Kh8 {[%clk 00:00:16]} 77. h6 {[%clk
00:01:47]} Kg8 {[%clk 00:00:17]} 78. g6 {[%clk 00:01:46]} {[%emt 00:00:03]} 1-0

[Event "Open Mancomunitat de la Ribera Alta (Sumacàrcer)"]
[Site "Sumacàrcer, Spain"]
[Date "2018.11.18"]
[Round "2.3"]
[White "Pedros Viudes, Santiago"]
[Black "Campos Gambuti, Luis Maria"]
[Result "0-1"]
[TimeControl "5m+3s"]
[WhiteElo "2009"]
[BlackElo "2432"]

1. d4 {[%clk 00:05:05]} {[%emt 00:00:42]} d5 {[%clk 00:05:05]} 2. Nf3 {[%clk
00:05:07]} c5 {[%clk 00:05:08]} 3. e3 {[%clk 00:04:53]} {[%emt 00:00:03]} Nc6
{[%clk 00:05:09]} 4. b3 {[%clk 00:04:47]} Bg4 {[%clk 00:05:10]} 5. Be2 {[%clk
00:04:41]} {[%emt 00:00:11]} Nf6 {[%clk 00:05:07]} {[%emt 00:00:10]} 6. O-O
{[%clk 00:04:34]} e6 {[%clk 00:05:08]} {[%emt 00:00:03]} 7. Bb2 {[%clk
00:04:22]} {[%emt 00:00:07]} Bd6 {[%clk 00:05:09]} {[%emt 00:00:04]} 8. Ne5
{[%clk 00:04:15]} {[%emt 00:00:11]} Bxe2 {[%clk 00:04:56]} {[%emt 00:00:13]} 9.
Qxe2 {[%clk 00:04:17]} {[%emt 00:00:11]} Qc7 {[%clk 00:04:51]} {[%emt
00:00:04]} 10. f4 {[%clk 00:04:06]} {[%emt 00:00:11]} cxd4 {[%clk 00:04:43]}
{[%emt 00:00:10]} 11. exd4 {[%clk 00:04:06]} {[%emt 00:00:03]} O-O {[%clk
00:04:44]} {[%emt 00:00:03]} 12. Nd2 {[%clk 00:03:52]} {[%emt 00:00:17]} Rac8
{[%clk 00:04:46]} 13. Rac1 {[%clk 00:03:23]} {[%emt 00:01:04]} Qa5 {[%clk
00:04:45]} 14. a4 {[%clk 00:02:56]} {[%emt 00:00:08]} Bb4 {[%clk 00:04:36]}
{[%emt 00:00:13]} 15. Ndf3 {[%clk 00:02:31]} {[%emt 00:00:19]} Bc3 {[%clk
00:04:37]} {[%emt 00:00:34]} 16. Nxc6 {[%clk 00:02:26]} Rxc6 {[%clk 00:04:38]}
17. Bxc3 {[%clk 00:01:46]} {[%emt 00:00:21]} Qxc3 {[%clk 00:04:38]} {[%emt
00:00:34]} 18. Ne5 {[%clk 00:01:43]} Qxd4+ {[%clk 00:04:39]} 19. Qf2 {[%clk
00:01:31]} {[%emt 00:00:11]} Qxf2+ {[%clk 00:04:36]} 20. Rxf2 Rc3 {[%clk
00:04:39]} 21. Rf3 {[%clk 00:01:15]} {[%emt 00:00:10]} Rfc8 {[%clk 00:04:27]}
{[%emt 00:00:15]} 22. Kf1 {[%clk 00:00:59]} {[%emt 00:00:19]} Rxc2 {[%clk
00:04:23]} {[%emt 00:00:06]} 0-1

[Event "Open Mancomunitat de la Ribera Alta (Sumacàrcer)"]
[Site "Sumacàrcer, Spain"]
[Date "2018.11.18"]
[Round "2.4"]
[White "Granero Roca, Antonio"]
[Black "Cortes Marti, Javier"]
[Result "1-0"]
[TimeControl "5m+3s"]
[WhiteElo "2372"]
[BlackElo "2027"]

1. d4 {[%clk 00:05:03]} {[%emt 00:00:04]} Nf6 {[%clk 00:05:02]} {[%emt
00:00:04]} 2. c4 {[%clk 00:05:05]} c5 {[%clk 00:05:04]} 3. d5 {[%clk 00:05:06]}
{[%emt 00:00:11]} b5 {[%clk 00:05:07]} 4. cxb5 {[%emt 00:00:09]} a6 5. b6
{[%clk 00:05:05]} g6 {[%clk 00:05:07]} 6. Nc3 {[%clk 00:05:06]} {[%emt
00:00:04]} Qxb6 {[%clk 00:05:08]} 7. e4 {[%clk 00:05:06]} Bg7 {[%clk 00:05:09]}
8. Nf3 {[%clk 00:05:07]} {[%emt 00:00:04]} d6 {[%clk 00:05:11]} 9. Nd2 {[%clk
00:05:07]} {[%emt 00:00:04]} O-O {[%clk 00:05:05]} {[%emt 00:00:05]} 10. Be2
{[%clk 00:05:08]} {[%emt 00:00:06]} Bb7 {[%clk 00:05:02]} {[%emt 00:00:04]} 11.
O-O {[%clk 00:05:07]} {[%emt 00:00:03]} Nbd7 {[%clk 00:05:01]} {[%emt
00:00:07]} 12. a4 {[%clk 00:05:07]} {[%emt 00:00:07]} Qc7 {[%clk 00:04:38]}
{[%emt 00:00:18]} 13. a5 {[%clk 00:05:07]} {[%emt 00:00:29]} e6 {[%clk
00:04:32]} {[%emt 00:00:04]} 14. Nc4 {[%clk 00:05:03]} exd5 {[%clk 00:04:22]}
{[%emt 00:00:03]} 15. exd5 {[%clk 00:05:04]} Rae8 {[%clk 00:04:18]} {[%emt
00:00:06]} 16. Bf4 {[%clk 00:04:45]} {[%emt 00:00:20]} Ne5 {[%clk 00:04:20]}
{[%emt 00:00:17]} 17. Nxe5 dxe5 18. Be3 {[%clk 00:04:42]} Rd8 {[%clk 00:04:11]}
{[%emt 00:00:12]} 19. Bc4 {[%clk 00:04:43]} Kh8 {[%clk 00:03:25]} {[%emt
00:00:47]} 20. h3 {[%clk 00:04:42]} {[%emt 00:00:10]} Qd6 {[%clk 00:03:09]}
{[%emt 00:00:12]} 21. Qb3 {[%clk 00:04:34]} {[%emt 00:00:12]} Rb8 {[%clk
00:03:04]} {[%emt 00:00:35]} 22. Qa3 {[%clk 00:04:07]} {[%emt 00:00:14]} Rfc8
{[%clk 00:02:58]} {[%emt 00:00:03]} 23. Rad1 {[%clk 00:04:01]} {[%emt
00:00:07]} Bf8 {[%clk 00:02:31]} {[%emt 00:00:26]} 24. Rfe1 {[%clk 00:03:59]}
{[%emt 00:00:09]} Ba8 {[%clk 00:02:10]} {[%emt 00:00:21]} 25. Bg5 {[%clk
00:03:50]} {[%emt 00:00:19]} Rb4 {[%clk 00:02:01]} {[%emt 00:00:09]} 26. b3
{[%clk 00:03:48]} {[%emt 00:00:04]} Bg7 {[%clk 00:01:48]} {[%emt 00:00:13]} 27.
Qc1 {[%clk 00:03:40]} {[%emt 00:00:12]} Re8 {[%clk 00:01:33]} {[%emt 00:00:40]}
28. Bh6 {[%clk 00:03:28]} Rbb8 {[%clk 00:01:25]} {[%emt 00:00:11]} 29. Bxg7+
{[%clk 00:03:29]} Kxg7 {[%clk 00:01:27]} 30. Qe3 {[%clk 00:03:13]} {[%emt
00:00:14]} Rbc8 {[%clk 00:00:58]} {[%emt 00:00:32]} 31. Na4 {[%clk 00:03:13]}
{[%emt 00:00:10]} Bb7 {[%clk 00:00:55]} {[%emt 00:00:20]} 32. Nb6 {[%clk
00:03:12]} {[%emt 00:00:03]} Rc7 {[%clk 00:00:53]} 33. Qe2 {[%clk 00:03:10]}
Nd7 {[%clk 00:00:30]} {[%emt 00:00:33]} 34. Bxa6 {[%clk 00:02:36]} {[%emt
00:00:26]} Nxb6 {[%clk 00:00:31]} 35. axb6 {[%clk 00:02:37]} {[%emt 00:00:04]}
Qxb6 {[%clk 00:00:32]} 36. Bc4 {[%clk 00:02:37]} {[%emt 00:00:10]} Qd6 {[%clk
00:00:30]} 37. Rd2 {[%clk 00:02:34]} {[%emt 00:00:04]} e4 {[%clk 00:00:28]}
{[%emt 00:00:04]} 38. Qe3 {[%clk 00:02:33]} {[%emt 00:00:05]} f5 {[%clk
00:00:24]} {[%emt 00:00:10]} 39. Ra1 {[%clk 00:02:31]} {[%emt 00:00:03]} 1-0

[Event "Open Mancomunitat de la Ribera Alta (Sumacàrcer)"]
[Site "Sumacàrcer, Spain"]
[Date "2018.11.18"]
[Round "2.5"]
[White "Cruz Lledo, Pablo"]
[Black "Reig Albero, Ferran"]
[Result "1-0"]
[TimeControl "5m+3s"]
[WhiteElo "2335"]
[BlackElo "1963"]

1. d4 {[%clk 00:05:02]} {[%emt 00:00:33]} Nf6 {[%clk 00:05:05]} 2. c4 {[%clk
00:05:03]} e6 {[%clk 00:05:06]} {[%emt 00:00:04]} 3. Nc3 {[%clk 00:05:02]} d5
{[%clk 00:05:08]} 4. Bg5 {[%clk 00:05:01]} Nbd7 {[%clk 00:05:09]} 5. e3 {[%clk
00:05:02]} Bb4 {[%clk 00:04:55]} {[%emt 00:00:05]} 6. Qc2 {[%clk 00:05:00]}
{[%emt 00:00:08]} c5 {[%clk 00:04:52]} {[%emt 00:00:05]} 7. Rd1 {[%clk
00:04:48]} {[%emt 00:00:28]} Qa5 {[%clk 00:04:50]} 8. cxd5 {[%clk 00:04:24]}
{[%emt 00:00:15]} Nxd5 {[%clk 00:04:39]} {[%emt 00:00:14]} 9. Nge2 {[%clk
00:04:10]} {[%emt 00:00:17]} Qxa2 {[%clk 00:04:05]} {[%emt 00:00:43]} 10. dxc5
{[%clk 00:03:45]} {[%emt 00:00:27]} Nxc5 {[%clk 00:03:42]} {[%emt 00:00:22]} 11.
e4 {[%clk 00:03:40]} {[%emt 00:00:09]} Nxe4 {[%clk 00:02:22]} {[%emt 00:01:20]}
12. Qxe4 {[%clk 00:03:13]} {[%emt 00:00:41]} Qxb2 {[%clk 00:02:23]} 13. Rxd5
{[%clk 00:02:53]} {[%emt 00:00:15]} Bxc3+ {[%clk 00:02:24]} {[%emt 00:00:10]}
14. Nxc3 {[%clk 00:02:40]} {[%emt 00:00:09]} Qxc3+ {[%clk 00:02:21]} {[%emt
00:00:34]} 15. Bd2 {[%clk 00:01:47]} {[%emt 00:00:27]} Qa1+ {[%clk 00:02:08]}
{[%emt 00:00:18]} 16. Ke2 {[%clk 00:01:31]} {[%emt 00:00:16]} O-O {[%clk
00:02:08]} {[%emt 00:00:10]} 17. Rd3 {[%clk 00:01:20]} {[%emt 00:00:10]} e5
{[%clk 00:01:10]} {[%emt 00:01:01]} 18. Bc3 {[%clk 00:01:20]} {[%emt 00:00:04]}
Qa6 {[%clk 00:00:59]} {[%emt 00:00:35]} 19. Ke1 {[%clk 00:01:10]} {[%emt
00:00:03]} Be6 {[%clk 00:00:40]} {[%emt 00:00:08]} 20. Be2 {[%clk 00:01:04]}
{[%emt 00:00:34]} Bc4 {[%clk 00:00:20]} {[%emt 00:00:07]} 21. Rd2 {[%clk
00:00:29]} {[%emt 00:00:30]} Rac8 {[%clk 00:00:19]} {[%emt 00:00:35]} 22. g4
{[%clk 00:00:08]} Bxe2 {[%clk 00:00:15]} {[%emt 00:00:03]} 23. Qxe5 {[%clk
00:00:06]} {[%emt 00:00:04]} Rxc3 {[%clk 00:00:09]} {[%emt 00:00:18]} 24. Qxc3
{[%clk 00:00:08]} Bxg4 {[%clk 00:00:06]} {[%emt 00:00:03]} 25. f3 {[%clk
00:00:11]} Re8+ {[%clk 00:00:05]} 26. Kf2 {[%clk 00:00:13]} Bh5 {[%clk
00:05:03]} {[%emt 00:00:11]} 27. Rd3 {Bandera} 1-0

[Event "Open Mancomunitat de la Ribera Alta (Sumacàrcer)"]
[Site "Sumacàrcer, Spain"]
[Date "2018.11.18"]
[Round "2.6"]
[White "Roca Cruz, Rafael"]
[Black "Garcia Vasquez, Jhoel"]
[Result "0-1"]
[TimeControl "5m+3s"]
[WhiteElo "1941"]
[BlackElo "2298"]

1. d4 {[%clk 00:05:04]} {[%emt 00:00:04]} Nf6 {[%clk 00:05:04]} 2. c4 {[%clk
00:05:06]} {[%emt 00:00:07]} e6 {[%clk 00:05:01]} 3. Nc3 {[%clk 00:05:07]}
{[%emt 00:00:04]} Bb4 {[%clk 00:04:48]} {[%emt 00:00:13]} 4. e3 {[%clk
00:05:09]} {[%emt 00:00:11]} b6 {[%clk 00:04:42]} 5. Nge2 {[%clk 00:05:10]} Bb7
{[%clk 00:04:44]} {[%emt 00:00:10]} 6. a3 {[%clk 00:05:12]} Be7 {[%clk
00:04:46]} {[%emt 00:00:04]} 7. d5 {[%clk 00:05:11]} a5 {[%clk 00:04:05]}
{[%emt 00:00:39]} 8. e4 {[%clk 00:05:12]} {[%emt 00:00:03]} exd5 {[%clk
00:04:06]} 9. exd5 {[%clk 00:05:13]} {[%emt 00:00:04]} Na6 {[%clk 00:03:51]}
{[%emt 00:00:16]} 10. Ng3 {[%clk 00:05:09]} {[%emt 00:00:04]} O-O {[%clk
00:03:32]} {[%emt 00:00:47]} 11. Be2 {[%clk 00:05:10]} Nc5 {[%clk 00:03:32]} 12.
O-O {[%clk 00:05:09]} Re8 {[%clk 00:03:28]} 13. Nf5 {[%clk 00:05:09]} Nfe4
{[%clk 00:03:11]} {[%emt 00:00:16]} 14. Nxe4 {[%clk 00:04:35]} {[%emt
00:00:49]} Nxe4 {[%clk 00:03:13]} 15. Qd3 {[%clk 00:04:36]} Bf6 {[%clk
00:03:03]} {[%emt 00:00:07]} 16. Bf3 {[%clk 00:03:52]} {[%emt 00:00:42]} Nd6
{[%clk 00:02:13]} {[%emt 00:00:54]} 17. Nxd6 {[%clk 00:03:34]} {[%emt
00:00:33]} cxd6 {[%clk 00:02:15]} 18. Rb1 {[%clk 00:02:55]} {[%emt 00:00:53]}
a4 {[%clk 00:02:06]} {[%emt 00:00:10]} 19. b4 {[%clk 00:02:57]} axb3 {[%clk
00:02:08]} 20. Rxb3 {[%clk 00:02:59]} Ba6 {[%clk 00:02:11]} 21. Be3 {[%clk
00:02:55]} Rb8 {[%clk 00:01:54]} {[%emt 00:00:11]} 22. Rfb1 {[%clk 00:02:56]}
{[%emt 00:00:03]} Qc7 {[%clk 00:01:22]} {[%emt 00:00:33]} 23. Be2 {[%clk
00:02:52]} {[%emt 00:00:07]} Rec8 {[%clk 00:00:39]} {[%emt 00:00:46]} 24. Rxb6
{[%clk 00:02:29]} {[%emt 00:00:32]} Rxb6 {[%clk 00:00:31]} {[%emt 00:00:09]} 25.
Rxb6 {[%clk 00:02:30]} {[%emt 00:00:04]} Ra8 {[%clk 00:00:29]} {[%emt
00:00:04]} 26. Qb3 {[%clk 00:02:12]} {[%emt 00:00:16]} g6 {[%clk 00:00:29]}
{[%emt 00:00:19]} 27. g3 {[%clk 00:01:42]} {[%emt 00:00:17]} h5 {[%clk
00:00:27]} {[%emt 00:00:07]} 28. Qb4 {[%clk 00:01:41]} {[%emt 00:00:04]} Be5
{[%clk 00:00:26]} {[%emt 00:00:10]} 29. f4 {[%clk 00:01:25]} {[%emt 00:00:11]}
Bg7 {[%clk 00:00:24]} {[%emt 00:00:21]} 30. Qxd6 {[%clk 00:01:23]} Qc8 {[%clk
00:00:27]} 31. Bc5 {[%emt 00:00:36]} Qe8 {[%clk 00:00:24]} 32. Rxa6 {[%clk
00:00:18]} {[%emt 00:00:30]} Rxa6 {[%clk 00:00:26]} 33. Qxa6 {[%clk 00:00:19]}
{[%emt 00:00:30]} Qxe2 {[%clk 00:00:28]} 34. Qc8+ {[%clk 00:00:13]} Kh7 {[%clk
00:00:30]} 35. Qxd7 {[%clk 00:00:10]} {[%emt 00:00:08]} h4 {[%clk 00:00:19]} 36.
Qxf7 {[%clk 00:00:07]} {[%emt 00:00:08]} h3 {[%emt 00:00:15]} 0-1